Cogmind - Beta 15 @@@ ROGUE MODE // 2025.09.18 @ 01:18:42 Player: c4-BRK Result: Destroyed by Piercing Trap Performance ------------- Evolutions (0) 0 Regions Visited (2) 400 Robots Destroyed (22) 110 Value Destroyed (545) 545 Prototype IDs (0) 0 Alien Tech Used (0) 0 Bonus (0) 0 TOTAL SCORE: 1055 Bonus ------- None Cogmind --------- Core Integrity 0/250 Matter 290/300 Energy 199/200 System Corruption 0% Temperature Cool (0) Movement Rolling (110) Ox2 Location -10/Subcaves Parts ------- > --- POWER (1) -------- Subdweller Power Source > --- PROPULSION (2) --- Wheel > --- UTILITY (2) ------ Small Storage Unit Makeshift Light Armor Plating > --- WEAPON (2) ------- Subdweller Beam Cannon Grenade Launcher > --- INVENTORY (8) ---- Subdweller Power Source Subdweller Power Source Aluminum Leg Scrap Shield Medium Laser Beam Rifle Subdweller Beam Cannon Peak State ------------ > --- POWER ------------ Subdweller Power Source > --- PROPULSION ------- Wheel Subdweller Monowheel > --- UTILITY ---------- Small Storage Unit Visual Processing Unit > --- WEAPON ----------- Subdweller Beam Cannon Grenade Launcher > --- INVENTORY -------- Subdweller Power Source Subdweller Power Source Aluminum Leg Scrap Shield Medium Laser Beam Rifle [Rating: 12] Favorites ----------- Power Ion Engine Engine Ion Engine Propulsion Aluminum Leg Leg Aluminum Leg Wheel Wheel Utility Small Storage Unit Storage Small Storage Unit Processor Visual Processing Unit Protection Makeshift Light Armor Plating Weapon Subdweller Beam Cannon Energy Gun Medium Laser Energy Cannon Subdweller Beam Cannon Ballistic Gun Assault Rifle Launcher Grenade Launcher Build | -11 -10 -10 ------- Run | Yrd Mat Sub Slots Evolved . | . . . Power . | . . . Propulsion . | . . . Utility . | . . . Weapon . | . . . Parts Attached 17 | 6 2 9 Power 5 | 1 . 4 Engine 5 | 1 . 4 Core . | . . . Reactor . | . . . Propulsion 5 | 2 1 2 Treads . | . . . Leg 3 | 2 1 . Wheel 2 | . . 2 Hover . | . . . Flight . | . . . Utility 3 | 1 1 1 Device . | . . . Storage 1 | 1 . . Processor 1 | . 1 . Hackware . | . . . Protection 1 | . . 1 Artifact . | . . . Weapon 4 | 2 . 2 Energy Gun 1 | 1 . . Energy Cannon 1 | . . 1 Ballistic Gun 1 | 1 . . Ballistic Cannon . | . . . Launcher 1 | . . 1 Special Weapon . | . . . Impact Weapon . | . . . Slashing Weapon . | . . . Piercing Weapon . | . . . Special Melee Weapon . | . . . Unidentified Prototypes . | . . . Parts Lost 4 | . . 4 Power 1 | . . 1 Propulsion 2 | . . 2 Utility . | . . . Weapon 1 | . . 1 Highest Loss Streak 3 | . . 3 To Critical Strikes . | . . . Average Backups 4 | 1 1 5 Power 1 | . . 1 Propulsion . | . 1 1 Utility . | . . . Weapon 1 | . . 2 Tool/Special . | . . . Unused Backups 3 | . . 3 Power . | . . . Propulsion . | . . . Utility 1 | . . 1 Weapon 2 | . . 2 Tool/Special . | . . . Average Slot Usage (%) 91 | . 91 90 Engine 14 | . 14 14 Leg 14 | . 28 8 Wheel 8 | . . 12 Storage 14 | . 14 14 Processor 11 | . 6 14 Energy Gun 6 | . 14 2 Energy Cannon 7 | . . 11 Ballistic Gun 7 | . 14 3 Launcher 5 | . . 8 Peak Build Rating 12 | 6 8 12 Average Rating 8 | 4 6 9 On Entrance 4 | . 6 8 Naked Turns . | . . . Heaviest Build 25 | 14 14 25 Greatest Support 30 | 20 20 30 Greatest Overweight (x) 2 | . . 2 Average Overweight (x) . | . . . Largest Inventory Capacity 8 | 8 8 8 Average Capacity 7 | 6 8 8 Most Carried 8 | 4 3 8 Average Carried 4 | 1 1 5 Final Capacity 8 | 8 8 8 Final Carried 8 | 1 2 8 Class Distribution -------------------- 100% | Mutant Dominant Class ---------------- Mutant | -10/Materials Mutant | -10/Subcaves Resources | -11 -10 -10 ----------- Run | Yrd Mat Sub Matter Collected 468 | 193 189 86 Remotely . | . . . Salvage Created 702 | . 319 383 Parts 49 | . 21 28 Haulers Intercepted . | . . . Recyclers Shooed 1 | . 1 . Parts Field Recycled . | . . . Retrieved Matter . | . . . Parts Self-Destructed 9 | . . 9 Prevented . | . . . Kills | -11 -10 -10 ------- Run | Yrd Mat Sub Combat Hostiles Destroyed 17 | . 8 9 Guns 8 | . 8 . Cannons 8 | . . 8 Classes Destroyed 9 | . 7 2 Worker 1 | . 1 . Recycler 1 | . 1 . Mechanic 1 | . 1 . Operator 1 | . 1 . Watcher 1 | . 1 . Swarmer 6 | . 6 . Grunt 2 | . 2 . Sentry 1 | . . 1 Subdweller 8 | . . 8 Best Kill Streak 5 | . 5 2 Combat Bots Only 3 | . 3 2 Max Kills in Single Turn 2 | . 2 1 Gunslinging 1 | . 1 . Exploded . | . . . Melee . | . . . Uniques/NPCs Destroyed . | . . . Combat | -11 -10 -10 -------- Run | Yrd Mat Sub Hostile Shots Fired 86 | . 45 41 Missed 25 | . 13 12 Hits 61 | . 32 29 Projectile 61 | . 32 29 Damage Taken 918 | . 292 626 Core 252 | . 19 233 Absorbed by Shields . | . . . Core Remaining (%) 100 | 100 . . Volleys Fired 70 | . 35 35 Largest 2 | . 2 2 Hottest 100 | . 70 100 Shots Fired 112 | . 70 42 Gun 77 | . 70 7 Cannon 35 | . . 35 Launcher . | . . . Special . | . . . Kinetic 42 | . 35 7 Thermal 70 | . 35 35 Explosive . | . . . Electromagnetic . | . . . Robot Hit Streak 9 | . 8 9 Robot Miss Streak 5 | . 5 3 Penetration Max . | . . . Secondary Targets 3 | . 3 . Max Gunslinging Chain 1 | . 1 . Shots Hit Robots 67 | . 35 32 Core Hits 28 | . 19 9 Critical Kills 1 | . . 1 Critical Parts Destroyed . | . . . Critical Strikes 3 | . 2 1 Burn 2 | . 2 . Meltdown 1 | . . 1 Melee Attacks . | . . . Impact . | . . . Slashing . | . . . Piercing . | . . . Sneak Attacks . | . . . Combat Hostiles . | . . . Follow-up Attacks . | . . . Damage Inflicted 1254 | . 477 777 Guns 547 | . 469 78 Cannons 699 | . . 699 Explosions . | . . . Melee . | . . . Ramming 8 | . 8 . Kinetic 316 | . 238 78 Thermal 930 | . 231 699 Explosive . | . . . Electromagnetic . | . . . Impact . | . . . Slashing . | . . . Piercing . | . . . Highest Corruption . | . . . Average Corruption . | . . . Corruption Purged . | . . . Corruption Blocked . | . . . Overload Shots . | . . . Overflow Damage . | . . . Projectiles . | . . . Explosions . | . . . Melee . | . . . Knockbacks . | . . . Impact . | . . . Kinetic . | . . . Secondary . | . . . Self-Inflicted Damage . | . . . Shots . | . . . Rammed . | . . . Targets Rammed 1 | . 1 . Kicked 1 | . 1 . Crushed . | . . . Highest Temperature 135 | . 135 27 Average Temperature 28 | . 33 13 Received Heat Transfer 234 | . 66 168 Siege Activations . | . . . Martial Activations . | . . . Shielding Activations . | . . . Robots Disrupted . | . . . Combat Hostiles . | . . . Robots Corrupted . | . . . Combat Hostiles . | . . . Parts Fried . | . . . Impact Corruptions . | . . . Robots Melted 1 | . . 1 Combat Hostiles 1 | . . 1 Parts Melted 7 | . 2 5 Heat Transferred 1739 | . 814 925 Parts Sabotaged . | . . . Parts Stolen . | . . . Parts Stripped . | . . . Power Chain Reactions . | . . . Alert | -11 -10 -10 ------- Run | Yrd Mat Sub Maximum Alert Level . | . . . Low Security (%) 100 | 100 100 . Level 1 . | . . . Level 2 . | . . . Level 3 . | . . . Level 4 . | . . . Level 5 . | . . . High Security . | . . . Max Security . | . . . Peak Influence 113 | . 113 . Initial . | . . . Average 31 | . 37 . Influence Increases 238 | . 218 20 Destroy 0b10 Robot/C 180 | . 160 20 Destroy 0b10 Robot/NC 25 | . 25 . Destroy Leader 32 | . 32 . Destroy Structure 1 | . 1 . Influence Decreases 238 | . 143 95 Entered New Map 37 | . . 37 Time Decay 201 | . 143 58 Squads Dispatched 2 | . 2 . Investigation . | . . . Extermination . | . . . Reinforcement 2 | . 2 . Assault . | . . . Garrison . | . . . Intercept . | . . . Searches Triggered . | . . . Construction Impeded . | . . . Haulers Reinforced . | . . . Active Scanning Responses . | . . . Cargo Convoy Interrupts . | . . . Stealth | -11 -10 -10 --------- Run | Yrd Mat Sub Distress Signals . | . . . Communications Jammed . | . . . Distress Signals . | . . . Times Spotted 23 | . 14 9 Peak Tracking Total 3 | . 3 2 Tactical Retreats . | . . . Traps | -11 -10 -10 ------- Run | Yrd Mat Sub Traps Triggered 2 | . . 2 Indirectly . | . . . Trap Hack Attempts . | . . . Triggered . | . . . Disarmed . | . . . Reprogrammed . | . . . Reused . | . . . Traps Extracted . | . . . Installed . | . . . Triggered . | . . . Machines | -11 -10 -10 ---------- Run | Yrd Mat Sub Machines Disabled . | . . . Max in Single Turn . | . . . Machines Repaired . | . . . Machines Dismantled . | . . . Machines Sabotaged . | . . . Overloaded Fab Kills . | . . . Hacking | -11 -10 -10 --------- Run | Yrd Mat Sub Machines Accessed . | . . . Terminals . | . . . Fabricators . | . . . Repair Stations . | . . . Recycling Units . | . . . Scanalyzers . | . . . Garrison Access . | . . . Total Hacks . | . . . Successful . | . . . Failed . | . . . Catastrophic . | . . . Database Lockouts . | . . . Manual . | . . . Terminals . | . . . Fabricators . | . . . Repair Stations . | . . . Recycling Units . | . . . Scanalyzers . | . . . Garrison Access . | . . . Terminal Hacks . | . . . Fabricator Hacks . | . . . Repair Station Hacks . | . . . Recycling Unit Hacks . | . . . Scanalyzer . | . . . Garrison Access Hacks . | . . . Unauthorized Hacks . | . . . Terminals . | . . . Fabricators . | . . . Repair Stations . | . . . Recycling Units . | . . . Scanalyzers . | . . . Garrison Access . | . . . Data Cores Recovered . | . . . Used . | . . . Hacking Detections . | . . . Full Trace Events . | . . . Feedback Events . | . . . Feedback Blocked . | . . . Robot Schematics Acquired . | . . . Robots Built . | . . . Authchips . | . . . Time . | . . . Total Robot Build Rating . | . . . Part Schematics Acquired . | . . . Parts Built . | . . . Authchips . | . . . Time . | . . . Total Part Build Rating . | . . . Parts Repaired . | . . . Time . | . . . Parts Recycled . | . . . Recycled Matter . | . . . Retrieved Matter . | . . . Retrieved Components . | . . . Parts Scanalyzed . | . . . Part Schematics Acquired . | . . . Parts Damaged . | . . . Bothacking | -11 -10 -10 ------------ Run | Yrd Mat Sub Used RIF Installer . | . . . Robots Hacked . | . . . Non-combat . | . . . Combat . | . . . Robot Hacks Applied . | . . . Relay Couplers Released . | . . . Fabnet Peak Effective % . | . . . Robots Rewired . | . . . Allies Hacked . | . . . Hacks Repelled . | . . . Allies | -11 -10 -10 -------- Run | Yrd Mat Sub Total Allies . | . . . Largest Group . | . . . Highest-Rated Group . | . . . Highest-Rated Ally . | . . . Total Orders . | . . . Ally Attacks . | . . . Total Damage . | . . . Kills . | . . . Allies Corrupted . | . . . Allies Melted . | . . . Intel | -11 -10 -10 ------- Run | Yrd Mat Sub Active Infowar (turns) 1050 | . 187 863 Optics 1050 | . 187 863 Robot Analysis Total . | . . . Derelict Logs Recovered 1 | . . 1 Drone Launches . | . . . Drone Recoveries . | . . . Exploration | -11 -10 -10 ------------- Run | Yrd Mat Sub Turns Passed 1343 | 77 400 866 Spaces Moved 791 | 60 180 551 Core 11 | 11 . . Treads . | . . . Legs 396 | 49 180 167 Wheels 384 | . . 384 Hover . | . . . Flight . | . . . Fastest Speed 50 | 50 120 95 Average Speed 112 | 107 120 111 Slowest Speed 190 | 120 120 190 Overloaded Moves . | . . . Propulsion Burnouts . | . . . Robots Hopped . | . . . Potential Cave-ins . | . . . Cave-ins Triggered . | . . . Exploration Rate (%) 27 | 3 37 42 Regions Visited 2 Branch Regions 1 Pre-discovered Areas 2 | . . 2 Known Exits Taken . | . . . Unknown Exits Taken 2 | 1 1 . Scrap Searched 8 | . . 8 Spaces Dug . | . . . Terrain Destroyed 5 | . . 5 Melee . | . . . Projectile 5 | . . 5 AOE . | . . . Terrain Rammed . | . . . Walls Destroyed . | . . . Machines Disabled . | . . . Actions | -11 -10 -10 --------- Run | Yrd Mat Sub Total 1129 | 72 294 763 Wait 229 | . 73 156 Move 789 | 59 179 551 Hop . | . . . Pick Up 19 | 7 3 9 Fast Attach 1 | . . 1 Attach 10 | 6 1 3 Detach . | . . . Swap 6 | . 1 5 Drop 4 | . 1 3 Fire 70 | . 35 35 Melee . | . . . Ram . | . . . Kick 1 | . 1 . Crush . | . . . Escape Stasis . | . . . Rewire . | . . . Trap . | . . . Miscellaneous . | . . . Route ------- -11/Scrapyard -10/Materials (discovered 2 exits: [*Min] / [*Sub]) -10/Subcaves History --------- Turn | Location | Event 7 | -11/Scrapyard | Discovered new exit (range 15) 78 | -11/Scrapyard | Entered Materials 312 | -10/Materials | Build established: Mutant 379 | -10/Materials | Discovered new exit (range 6) 466 | -10/Materials | Discovered new exit (range 5) 478 | -10/Materials | Entered Subcaves 479 | -10/Subcaves | Approached by a straggling Scientist 578 | -10/Subcaves | Shifting Twisted Machinery released Sub. Beam Cannon 636 | -10/Subcaves | Learned location of Zion (-6) 636 | -10/Subcaves | Met a Zionite searching for "candidates" 746 | -10/Subcaves | Lost 3 parts (1p1n1w) 890 | -10/Subcaves | Shifting Twisted Machinery released Mak. Flight Unit 896 | -10/Subcaves | Shifting Twisted Machinery released Battle Rifle 907 | -10/Subcaves | Shifting Twisted Machinery released Sub. Beam Cannon 925 | -10/Subcaves | Core integrity fell below 50% 926 | -10/Subcaves | Shifting Twisted Machinery released Battle Rifle 1042 | -10/Subcaves | Core integrity fell below 20% 1165 | -10/Subcaves | A swath of the cavern ceiling suddenly collapsed 1344 | -10/Subcaves | Destroyed by Piercing Trap Last Messages --------------- Found 31 Matter. Searching scrap... Found Shrapnel Trap. Found 61 Matter. Searching scrap... Found Enh. Flamer. Found Mak. Light Armor Plating. Found 67 Matter. Searching scrap... Found Sub. Power Source. Found Sub. Machine Gun. Found 50 Matter. Searching scrap... Found Mak. Light Armor Plating. Found Battle Rifle. Found 69 Matter. Discarded Visual Processing Unit. Acquired Mak. Light Armor Plating. Triggered Piercing Trap. Spikes shoot up from the floor. Map ----- +----------------------------------------------------+ | ????## ""[ ##### ## # ## ########"""## | | ?????#### # ####????####?### ###??####""###??? | | ????????# # ###????????????# ???### ""##??? | | ???????##^ #????????????## % ??## " ##?? | | ????#### #?????????????## #??# ### | | ???##" ^ ##??????????????# #???# ## "# | | ?###" "##???????????????##????# #?### " | | "#[ ##??????????????????????# ###????# | | ""%! "#??????????????????????###???????## | | ""& #?????????????????????????????????# | | ##" ## #?????????????????????????????????## | | ?###?#"" ##??????????????????????????????????## | | ?????### ##???????????????????????????????????## | | ???????# "" #????????????????????????????????????? | | ???????## "%#??????????????????###???????????????? | | ???????# "" #?????????????????## #???????????????? | | ???????#% ##????????????????## #???????????????? | | ???????# ##????????????????# #???????????????? | | ?####??## " ###?????????????## #??########?????? | | ? """### "" #?????????????# ##?# ## ###??#? | | ?""" " """ % #??????######??# #?# # # ## | | ?""""" "" ""#????###< <<#### ### | | ??##" ""!"####???## ### ## # ### | | # ## ""&###??????#< << ## ####### | | # [ """"%##??????## << ## # | | ##" """"% ##?????#< @ <# | | #### """*=[##????#< * &| ## ## | | ##?##=" ! ##???#< %%% # #" | | ???## # #???#< |%#%*# | | #????# ### #???# %$%[# | | #?##?# ?## #???# &![#[# " ## #### | | ## #? ?# ###??##" < &&%&###" ######??? | | ###% #???#< *="## ## #####???? | | # # #?### #???##<&" ""### ## ##??? | | ##### ##?# ##???###"""" #### ## #### | | #??# #?## #?????####### | | ### #?# ##???????###### ## | | %% ???# #????????# ##### ## | | #? ??### #######??# #### ## | | ####### #### ### ## | | # ## ##?# #### | | % % % #### #??###??## | | ## ####??## ## #????##?# | | #### ##??????## ## #?## ## | | #??## #????????##### #?# | | ????## #????????????# ##?## | | ?????## ###### ##???????????? ####???## ## | | ??????#####????####????????????######???????#####? | | ?????????????????????????????????????????????????? | | ?????????????????????????????????????????????????? | +----------------------------------------------------+ Best States ------------- Heat Dissipation 25 Energy Generation 15 Energy Capacity 250 Matter Stores 300 Matter Capacity 300 Sight Range 18 Terrain Scan Density 10 Evasion (%) 55 Item Schematics ----------------- None Robot Schematics ------------------ None Fabricated ------------ Nothing Repaired ---------- Nothing Alien Tech Used ----------------- None Achievements -------------- None Challenges ------------ None Game ------ Seed WeaponReinforcedMegatreads Manual? 0 Play Time 00:08:21 Cumulative 25.0 hours Start 2025.09.18 @ 01:10:08 End 2025.09.18 @ 01:18:42 Sessions 1 Manual Loads 0 Difficulty Rogue Special Mode None Game No. 39 Rogue 18 Adventurer 21 Explorer 0 Win Type - Total 1 Types 0/0/0/0/0/0/0/1/0/0 Lore% 48 Gallery% 32 Achievement% 37 Wizard Run 0 Options --------- Layout 1 ASCII 0 Keyboard 0 Movement Mouse Keybinds 0 Fullscreen 2 Font 24/Smallcaps Map View 50x35 Zoom Use 0% Tactical HUD 0 Map Filters NONE Filters NONE Steam 1 RUN: da120f41-497a-41b7-b527-757ae042430b